[Event "Masters Tournament (MTO)"]
[Site "Biel, Switzerland"]
[Date "2026.07.21"]
[Round "8.1"]
[White "Cao, Qingfeng"]
[Black "Gloeckler, Christian"]
[Result "0-1"]
[TimeControl "100+30+30sec/move"]
[WhiteTitle "-"]
[BlackTitle "-"]
[WhiteFideId "8627568"]
[BlackFideId "34608966"]
[WhiteElo "2365"]
[BlackElo "2506"]

1. d4 {[%clk 01:39:51]} {[%emt 00:00:57]} Nf6 {[%clk 01:40:56]} {[%emt
00:00:15]} 2. c4 {[%clk 01:39:23]} {[%emt 00:00:58]} e6 {[%clk 01:41:19]}
{[%emt 00:00:07]} 3. g3 {[%clk 01:39:44]} {[%emt 00:00:09]} d5 {[%clk
01:41:43]} {[%emt 00:00:07]} 4. Bg2 {[%clk 01:40:08]} {[%emt 00:00:05]} Be7
{[%clk 01:42:07]} {[%emt 00:00:07]} 5. Nf3 {[%clk 01:40:30]} {[%emt 00:00:07]}
O-O {[%clk 01:42:30]} {[%emt 00:00:07]} 6. O-O {[%clk 01:40:53]} {[%emt
00:00:05]} Nbd7 {[%clk 01:42:54]} {[%emt 00:00:08]} 7. Qc2 {[%clk 01:41:15]}
{[%emt 00:00:08]} a5 {[%clk 01:43:18]} {[%emt 00:00:07]} 8. Rd1 {[%clk
01:41:33]} {[%emt 00:00:11]} h6 {[%clk 01:43:42]} {[%emt 00:00:07]} 9. Bf4
{[%clk 01:40:13]} {[%emt 00:01:49]} c6 {[%clk 01:44:06]} {[%emt 00:00:07]} 10.
Nc3 {[%clk 01:40:15]} {[%emt 00:00:28]} b6 {[%clk 01:31:59]} {[%emt 00:12:38]}
11. Ne5 {[%clk 01:35:28]} {[%emt 00:05:16]} Nxe5 {[%clk 01:30:03]} {[%emt
00:02:26]} 12. dxe5 {[%clk 01:35:38]} {[%emt 00:00:19]} Nd7 {[%clk 01:30:29]}
{[%emt 00:00:05]} 13. Rac1 {[%clk 01:33:26]} {[%emt 00:02:41]} Bc5 {[%clk
01:10:46]} {[%emt 00:20:14]} 14. h4 {[%clk 01:11:38]} {[%emt 00:22:17]} Ba6
{[%clk 01:07:24]} {[%emt 00:03:52]} 15. cxd5 {[%clk 01:09:21]} {[%emt
00:02:47]} cxd5 {[%clk 01:07:34]} {[%emt 00:00:20]} 16. Na4 {[%clk 01:08:57]}
{[%emt 00:00:54]} Qe7 {[%clk 01:01:45]} {[%emt 00:06:18]} 17. h5 {[%clk
01:04:57]} {[%emt 00:04:30]} Rac8 {[%clk 00:59:22]} {[%emt 00:02:54]} 18. Nxc5
{[%clk 01:04:56]} {[%emt 00:00:31]} bxc5 {[%clk 00:59:38]} {[%emt 00:00:15]} 19.
Qd2 {[%clk 01:01:39]} {[%emt 00:03:46]} a4 {[%clk 00:55:26]} {[%emt 00:04:42]}
20. Bf3 {[%clk 01:00:19]} {[%emt 00:01:49]} Bb7 {[%clk 00:49:43]} {[%emt
00:06:14]} 21. Qa5 {[%clk 00:49:53]} {[%emt 00:10:55]} Ra8 {[%clk 00:42:56]}
{[%emt 00:07:18]} 22. Qc7 {[%clk 00:48:40]} {[%emt 00:01:42]} Ba6 {[%clk
00:35:40]} {[%emt 00:07:46]} 23. Be3 {[%clk 00:48:17]} {[%emt 00:00:52]} Rfc8
{[%clk 00:31:02]} {[%emt 00:05:09]} 24. Bxc5 {[%clk 00:48:26]} {[%emt
00:00:20]} Rxc7 {[%clk 00:31:02]} {[%emt 00:00:31]} 25. Bxe7 {[%clk 00:48:50]}
{[%emt 00:00:05]} Rxc1 {[%clk 00:31:01]} {[%emt 00:00:31]} 26. Rxc1 {[%clk
00:49:18]} {[%emt 00:00:02]} Nxe5 {[%clk 00:31:19]} {[%emt 00:00:12]} 27. Kg2
{[%clk 00:45:36]} {[%emt 00:04:12]} f6 {[%clk 00:22:07]} {[%emt 00:09:43]} 28.
b3 {[%clk 00:43:54]} {[%emt 00:02:11]} axb3 {[%clk 00:21:25]} {[%emt 00:01:12]}
29. axb3 {[%clk 00:44:22]} {[%emt 00:00:02]} Bb5 {[%clk 00:21:28]} {[%emt
00:00:27]} 30. Rc5 {[%clk 00:32:11]} {[%emt 00:12:40]} Be8 {[%clk 00:17:02]}
{[%emt 00:04:57]} 31. Bd6 {[%clk 00:31:20]} {[%emt 00:01:21]} Nxf3 {[%clk
00:16:13]} {[%emt 00:01:20]} 32. Kxf3 {[%clk 00:29:47]} {[%emt 00:02:03]} Bxh5+
{[%clk 00:15:53]} {[%emt 00:00:50]} 33. g4 {[%clk 00:29:21]} {[%emt 00:00:55]}
Be8 {[%clk 00:13:57]} {[%emt 00:02:26]} 34. b4 {[%clk 00:28:54]} {[%emt
00:00:56]} Ra7 {[%clk 00:09:42]} {[%emt 00:04:46]} 35. e3 {[%clk 00:27:47]}
{[%emt 00:01:33]} Kf7 {[%clk 00:06:57]} {[%emt 00:03:19]} 36. Kg3 {[%clk
00:27:38]} {[%emt 00:00:38]} g5 {[%clk 00:05:28]} {[%emt 00:02:00]} 37. f4
{[%clk 00:19:20]} {[%emt 00:08:47]} Rd7 {[%clk 00:05:10]} {[%emt 00:00:48]} 38.
Rc7 {[%clk 00:17:19]} {[%emt 00:02:31]} Rxc7 {[%clk 00:04:32]} {[%emt
00:01:09]} 39. Bxc7 {[%clk 00:17:46]} {[%emt 00:00:02]} Kg6 {[%clk 00:02:54]}
{[%emt 00:02:09]} 40. Bd6 {[%clk 00:08:34]} {[%emt 00:09:40]} gxf4+ {[%clk
00:01:48]} {[%emt 00:01:38]} 41. exf4 {[%clk 00:04:33]} {[%emt 00:04:31]} f5
{[%clk 00:01:50]} {[%emt 00:00:28]} 42. g5 {[%clk 00:10:30]} {[%emt 00:24:33]}
hxg5 {[%clk 00:32:02]} {[%emt 00:00:19]} 43. Be5 {[%clk 00:03:04]} {[%emt
00:07:57]} Bc6 {[%clk 00:27:28]} {[%emt 00:05:04]} 44. Bd4 {[%clk 00:02:00]}
{[%emt 00:01:34]} Bb5 {[%clk 00:19:57]} {[%emt 00:08:01]} 45. Kf3 {[%clk
00:01:47]} {[%emt 00:00:43]} Bc4 {[%clk 00:18:27]} {[%emt 00:02:00]} 46. Be5
{[%clk 00:00:37]} {[%emt 00:01:39]} g4+ {[%clk 00:17:51]} {[%emt 00:01:06]} 47.
Kf2 {[%clk 00:00:52]} {[%emt 00:00:16]} Ba6 {[%clk 00:16:58]} {[%emt 00:01:23]}
48. Bd4 {[%clk 00:01:16]} {[%emt 00:00:05]} Kf7 {[%clk 00:17:14]} {[%emt
00:00:14]} 49. Ke3 {[%clk 00:01:45]} {[%emt 00:00:01]} Ke8 {[%clk 00:17:27]}
{[%emt 00:00:17]} 50. Bc5 {[%clk 00:01:48]} {[%emt 00:00:28]} Kd7 {[%clk
00:17:33]} {[%emt 00:00:23]} 51. Kd4 {[%clk 00:00:34]} {[%emt 00:01:43]} Kc6
{[%clk 00:17:56]} {[%emt 00:00:07]} 52. Kc3 {[%clk 00:00:47]} {[%emt 00:00:17]}
Bc4 {[%clk 00:17:55]} {[%emt 00:00:31]} 53. Kd4 {[%clk 00:00:46]} {[%emt
00:00:31]} Kb5 {[%clk 00:18:17]} {[%emt 00:00:08]} 54. Ke5 {[%clk 00:01:13]}
{[%emt 00:00:02]} g3 {[%clk 00:14:47]} {[%emt 00:04:00]} 55. Kd4 {[%clk
00:01:19]} {[%emt 00:00:24]} g2 {[%clk 00:14:51]} {[%emt 00:00:26]} 56. Kc3
{[%clk 00:01:42]} {[%emt 00:00:07]} Ka4 {[%clk 00:15:04]} {[%emt 00:00:17]} 57.
Bd4 {[%clk 00:01:53]} {[%emt 00:00:19]} Bb5 {[%clk 00:15:04]} {[%emt 00:00:30]}
58. Bc5 {[%clk 00:00:43]} {[%emt 00:01:40]} Ka3 {[%clk 00:15:23]} {[%emt
00:00:11]} 59. Bd4 {[%clk 00:00:33]} {[%emt 00:00:40]} Ka2 {[%clk 00:15:35]}
{[%emt 00:00:17]} 60. Kc2 {[%clk 00:00:51]} {[%emt 00:00:12]} Ba4 {[%clk
00:15:44]} {[%emt 00:00:21]} 61. Kc3 {[%clk 00:01:16]} {[%emt 00:00:05]} Kb1
{[%clk 00:15:56]} {[%emt 00:00:18]} 62. Be3 {[%clk 00:01:27]} {[%emt 00:00:20]}
Bb5 {[%clk 00:15:26]} {[%emt 00:01:01]} 63. Kd4 {[%clk 00:01:14]} {[%emt
00:00:42]} Kc2 {[%clk 00:15:25]} {[%emt 00:00:31]} 64. Ke5 {[%clk 00:01:38]}
{[%emt 00:00:06]} Kd3 {[%clk 00:15:23]} {[%emt 00:00:32]} 65. Bc5 {[%clk
00:02:03]} {[%emt 00:00:05]} Kc4 {[%clk 00:14:40]} {[%emt 00:01:13]} 66. Ba7
{[%clk 00:02:06]} {[%emt 00:00:27]} Kxb4 {[%clk 00:14:00]} {[%emt 00:01:10]} 67.
Kxe6 {[%clk 00:02:30]} {[%emt 00:00:06]} Bd3 {[%clk 00:14:21]} {[%emt
00:00:09]} 68. Kxd5 {[%clk 00:02:21]} {[%emt 00:00:39]} Be4+ {[%clk 00:14:22]}
{[%emt 00:00:29]} 69. Ke5 {[%clk 00:02:25]} {[%emt 00:00:26]} Kc4 {[%clk
00:14:44]} {[%emt 00:00:08]} 0-1

[Event "Masters Tournament (MTO)"]
[Site "Biel, Switzerland"]
[Date "2026.07.21"]
[Round "8.2"]
[White "Alexakis, Dimitris"]
[Black "Gopal, G.N."]
[Result "1/2-1/2"]
[TimeControl "100+30+30sec/move"]
[WhiteTitle "-"]
[BlackTitle "-"]
[WhiteFideId "4277023"]
[BlackFideId "5015693"]
[WhiteElo "2525"]
[BlackElo "2529"]

1. e4 {[%clk 01:40:43]} {[%emt 00:00:16]} c5 {[%clk 01:40:56]} {[%emt
00:00:04]} 2. Nf3 {[%clk 01:40:58]} {[%emt 00:00:15]} d6 {[%clk 01:41:21]}
{[%emt 00:00:05]} 3. d4 {[%clk 01:41:18]} {[%emt 00:00:09]} cxd4 {[%clk
01:41:46]} {[%emt 00:00:05]} 4. Nxd4 {[%clk 01:41:42]} {[%emt 00:00:07]} Nf6
{[%clk 01:42:12]} {[%emt 00:00:04]} 5. Nc3 {[%clk 01:42:04]} {[%emt 00:00:08]}
a6 {[%clk 01:42:37]} {[%emt 00:00:05]} 6. Be2 {[%clk 01:42:28]} {[%emt
00:00:06]} e5 {[%clk 01:42:39]} {[%emt 00:00:28]} 7. Nb3 {[%clk 01:42:47]}
{[%emt 00:00:11]} Be7 {[%clk 01:41:41]} {[%emt 00:01:28]} 8. Be3 {[%clk
01:41:41]} {[%emt 00:01:36]} Be6 {[%clk 01:39:24]} {[%emt 00:02:47]} 9. Qd3
{[%clk 01:40:01]} {[%emt 00:02:10]} Nbd7 {[%clk 01:33:57]} {[%emt 00:05:57]} 10.
Nd5 {[%clk 01:39:17]} {[%emt 00:01:14]} Bxd5 {[%clk 01:26:54]} {[%emt
00:07:33]} 11. exd5 {[%clk 01:39:38]} {[%emt 00:00:09]} Rc8 {[%clk 01:26:25]}
{[%emt 00:00:58]} 12. O-O-O {[%clk 01:38:24]} {[%emt 00:01:44]} Nb6 {[%clk
01:19:48]} {[%emt 00:07:08]} 13. Kb1 {[%clk 01:38:13]} {[%emt 00:00:41]} Nc4
{[%clk 01:09:49]} {[%emt 00:10:29]} 14. Bc1 {[%clk 01:38:26]} {[%emt 00:00:17]}
b5 {[%clk 01:10:14]} {[%emt 00:00:05]} 15. h4 {[%clk 01:31:35]} {[%emt
00:07:20]} h5 {[%clk 01:00:42]} {[%emt 00:10:03]} 16. f3 {[%clk 01:16:39]}
{[%emt 00:15:26]} O-O {[%clk 00:53:08]} {[%emt 00:08:04]} 17. g4 {[%clk
01:15:17]} {[%emt 00:01:52]} a5 {[%clk 00:50:43]} {[%emt 00:02:55]} 18. gxh5
{[%clk 00:52:20]} {[%emt 00:23:27]} a4 {[%clk 00:35:07]} {[%emt 00:16:07]} 19.
Nd2 {[%clk 00:19:35]} {[%emt 00:33:14]} Nxh5 {[%clk 00:30:27]} {[%emt
00:05:10]} 20. Nxc4 {[%clk 00:08:14]} {[%emt 00:11:51]} bxc4 {[%clk 00:23:53]}
{[%emt 00:07:04]} 21. Qc3 {[%clk 00:08:26]} {[%emt 00:00:18]} Bf6 {[%clk
00:11:38]} {[%emt 00:12:45]} 22. Bg5 {[%clk 00:01:10]} {[%emt 00:07:45]} Ng3
{[%clk 00:02:41]} {[%emt 00:09:27]} 1/2-1/2

[Event "Masters Tournament (MTO)"]
[Site "Biel, Switzerland"]
[Date "2026.07.21"]
[Round "8.3"]
[White "Acs, Peter"]
[Black "Ghosh, Diptayan"]
[Result "1/2-1/2"]
[TimeControl "100+30+30sec/move"]
[WhiteTitle "-"]
[BlackTitle "-"]
[WhiteFideId "708020"]
[BlackFideId "5045207"]
[WhiteElo "2561"]
[BlackElo "2554"]

1. e4 {[%clk 01:40:52]} {[%emt 00:00:07]} e5 {[%clk 01:39:04]} {[%emt
00:01:56]} 2. Nf3 {[%clk 01:40:59]} {[%emt 00:00:23]} Nc6 {[%clk 01:39:27]}
{[%emt 00:00:07]} 3. d4 {[%clk 01:40:47]} {[%emt 00:00:42]} exd4 {[%clk
01:39:32]} {[%emt 00:00:26]} 4. Nxd4 {[%clk 01:41:05]} {[%emt 00:00:11]} Bc5
{[%clk 01:39:35]} {[%emt 00:00:27]} 5. Be3 {[%clk 01:41:11]} {[%emt 00:00:24]}
Qf6 {[%clk 01:39:27]} {[%emt 00:00:38]} 6. c3 {[%clk 01:41:09]} {[%emt
00:00:32]} Nge7 {[%clk 01:39:51]} {[%emt 00:00:07]} 7. Bb5 {[%clk 01:41:12]}
{[%emt 00:00:27]} O-O {[%clk 01:39:04]} {[%emt 00:01:17]} 8. O-O {[%clk
01:38:46]} {[%emt 00:02:55]} Bb6 {[%clk 01:39:14]} {[%emt 00:00:21]} 9. a4
{[%clk 01:37:00]} {[%emt 00:02:16]} Qg6 {[%clk 01:37:44]} {[%emt 00:02:00]} 10.
Bd3 {[%clk 01:30:05]} {[%emt 00:07:26]} d6 {[%clk 01:37:32]} {[%emt 00:00:42]}
11. Kh1 {[%clk 01:28:52]} {[%emt 00:01:42]} Ne5 {[%clk 01:36:31]} {[%emt
00:01:31]} 12. Bc2 {[%clk 01:27:18]} {[%emt 00:02:04]} f5 {[%clk 01:20:03]}
{[%emt 00:16:59]} 13. exf5 {[%clk 01:26:40]} {[%emt 00:01:08]} Nxf5 {[%clk
01:17:36]} {[%emt 00:02:57]} 14. a5 {[%clk 01:26:15]} {[%emt 00:00:55]} Bxd4
{[%clk 01:13:57]} {[%emt 00:04:09]} 15. Bxd4 {[%clk 01:26:27]} {[%emt
00:00:17]} Nc6 {[%clk 01:08:21]} {[%emt 00:06:06]} 16. Re1 {[%clk 01:21:48]}
{[%emt 00:05:08]} Qh6 {[%clk 01:00:32]} {[%emt 00:08:20]} 17. f3 {[%clk
01:10:10]} {[%emt 00:12:08]} Ncxd4 {[%clk 00:41:50]} {[%emt 00:19:13]} 18. cxd4
{[%clk 01:10:03]} {[%emt 00:00:36]} Ng3+ {[%clk 00:39:56]} {[%emt 00:02:24]} 19.
Kg1 {[%clk 01:10:23]} {[%emt 00:00:11]} Nh5 {[%clk 00:40:23]} {[%emt 00:00:03]}
20. Ra3 {[%clk 00:55:45]} {[%emt 00:15:07]} Nf4 {[%clk 00:39:50]} {[%emt
00:01:03]} 21. g3 {[%clk 00:54:19]} {[%emt 00:01:56]} Qg5 {[%clk 00:33:48]}
{[%emt 00:06:33]} 22. Nd2 {[%clk 00:48:59]} {[%emt 00:05:50]} Kh8 {[%clk
00:24:14]} {[%emt 00:10:04]} 23. Ne4 {[%clk 00:40:10]} {[%emt 00:09:19]} Qg6
{[%clk 00:23:14]} {[%emt 00:01:31]} 24. Nf2 {[%clk 00:37:24]} {[%emt 00:03:15]}
Qg5 {[%clk 00:21:53]} {[%emt 00:01:51]} 25. Rae3 {[%clk 00:34:45]} {[%emt
00:03:09]} Nd5 {[%clk 00:21:24]} {[%emt 00:01:00]} 26. Re8 {[%clk 00:27:38]}
{[%emt 00:07:37]} Bd7 {[%clk 00:20:59]} {[%emt 00:00:56]} 27. Qd3 {[%clk
00:25:50]} {[%emt 00:02:18]} Qh5 {[%clk 00:19:18]} {[%emt 00:02:11]} 28. Rxa8
{[%clk 00:20:31]} {[%emt 00:05:49]} Rxa8 {[%clk 00:19:06]} {[%emt 00:00:42]} 29.
Qb3 {[%clk 00:16:10]} {[%emt 00:04:51]} Bc6 {[%clk 00:16:36]} {[%emt 00:02:59]}
30. a6 {[%clk 00:16:03]} {[%emt 00:00:37]} Nb6 {[%clk 00:14:53]} {[%emt
00:02:13]} 31. Be4 {[%clk 00:14:42]} {[%emt 00:01:51]} Bxe4 {[%clk 00:14:44]}
{[%emt 00:00:39]} 32. fxe4 {[%clk 00:12:57]} {[%emt 00:02:15]} bxa6 {[%clk
00:15:04]} {[%emt 00:00:10]} 33. e5 {[%clk 00:13:06]} {[%emt 00:00:20]} Re8
{[%clk 00:12:59]} {[%emt 00:02:35]} 34. e6 {[%clk 00:09:25]} {[%emt 00:04:11]}
Qd5 {[%clk 00:11:46]} {[%emt 00:01:43]} 35. Qe3 {[%clk 00:09:25]} {[%emt
00:00:29]} Qf5 {[%clk 00:12:12]} {[%emt 00:00:05]} 36. g4 {[%clk 00:07:48]}
{[%emt 00:02:07]} Qg6 {[%clk 00:10:29]} {[%emt 00:02:13]} 37. Qf3 {[%clk
00:06:22]} {[%emt 00:01:56]} Kg8 {[%clk 00:09:32]} {[%emt 00:01:27]} 38. d5
{[%clk 00:06:00]} {[%emt 00:00:51]} Rf8 {[%clk 00:08:20]} {[%emt 00:01:42]} 39.
Qg2 {[%clk 00:00:52]} {[%emt 00:05:37]} Qg5 {[%clk 00:07:52]} {[%emt 00:00:59]}
40. Rd1 {[%clk 00:01:16]} {[%emt 00:00:06]} Qe3 {[%clk 00:06:04]} {[%emt
00:02:18]} 41. Rd3 {[%clk 00:28:31]} {[%emt 00:03:15]} Qe1+ {[%clk 00:33:54]}
{[%emt 00:02:40]} 42. Qf1 {[%clk 00:28:54]} {[%emt 00:00:06]} Qe5 {[%clk
00:30:15]} {[%emt 00:04:09]} 43. Qd1 {[%clk 00:28:41]} {[%emt 00:00:44]} Qxb2
{[%clk 00:28:39]} {[%emt 00:02:07]} 44. Rf3 {[%clk 00:27:40]} {[%emt 00:01:30]}
Rxf3 {[%clk 00:26:18]} {[%emt 00:02:52]} 45. Qxf3 {[%clk 00:28:02]} {[%emt
00:00:07]} Qf6 {[%clk 00:26:04]} {[%emt 00:00:45]} 46. Qd3 {[%clk 00:25:41]}
{[%emt 00:02:51]} Qe5 {[%clk 00:21:58]} {[%emt 00:04:35]} 47. Qf3 {[%clk
00:25:10]} {[%emt 00:01:00]} Qf6 {[%clk 00:21:44]} {[%emt 00:00:46]} 48. Qd3
{[%clk 00:25:32]} {[%emt 00:00:07]} Qa1+ {[%clk 00:20:47]} {[%emt 00:01:27]} 49.
Nd1 {[%clk 00:25:50]} {[%emt 00:00:12]} a5 {[%clk 00:20:43]} {[%emt 00:00:35]}
50. h4 {[%clk 00:21:52]} {[%emt 00:04:27]} a4 {[%clk 00:20:08]} {[%emt
00:01:05]} 51. g5 {[%clk 00:22:07]} {[%emt 00:00:15]} Nc4 {[%clk 00:10:03]}
{[%emt 00:10:35]} 52. e7 {[%clk 00:11:06]} {[%emt 00:11:31]} Kf7 {[%clk
00:09:53]} {[%emt 00:00:40]} 53. Qf5+ {[%clk 00:10:52]} {[%emt 00:00:43]} Kxe7
{[%clk 00:10:19]} {[%emt 00:00:04]} 54. Qe6+ {[%clk 00:11:11]} {[%emt
00:00:09]} Kd8 {[%clk 00:10:27]} {[%emt 00:00:24]} 55. Qg8+ {[%clk 00:11:31]}
{[%emt 00:00:10]} Ke7 {[%clk 00:10:51]} {[%emt 00:00:06]} 56. Qe6+ {[%emt
00:00:18]} h6 {[%emt 00:00:01]} 1/2-1/2

[Event "Masters Tournament (MTO)"]
[Site "Biel, Switzerland"]
[Date "2026.07.21"]
[Round "8.4"]
[White "Aronyak, Ghosh"]
[Black "Baenziger, Fabian"]
[Result "1-0"]
[TimeControl "100+30+30sec/move"]
[WhiteTitle "-"]
[BlackTitle "-"]
[WhiteFideId "25072846"]
[BlackFideId "1330110"]
[WhiteElo "2549"]
[BlackElo "2435"]

1. e4 {[%clk 01:40:42]} {[%emt 00:00:18]} c5 {[%clk 01:40:22]} {[%emt
00:00:38]} 2. Nf3 {[%clk 01:40:53]} {[%emt 00:00:19]} Nc6 {[%clk 01:40:41]}
{[%emt 00:00:12]} 3. Bb5 {[%clk 01:40:46]} {[%emt 00:00:37]} d6 {[%clk
01:40:44]} {[%emt 00:00:26]} 4. O-O {[%clk 01:38:36]} {[%emt 00:02:40]} Bd7
{[%clk 01:41:10]} {[%emt 00:00:05]} 5. Re1 {[%clk 01:30:24]} {[%emt 00:08:42]}
a6 {[%clk 01:40:46]} {[%emt 00:00:55]} 6. Bf1 {[%clk 01:27:33]} {[%emt
00:03:20]} Bg4 {[%clk 01:40:50]} {[%emt 00:00:26]} 7. c3 {[%clk 01:26:34]}
{[%emt 00:01:30]} e6 {[%clk 01:34:25]} {[%emt 00:06:54]} 8. h3 {[%clk
01:19:56]} {[%emt 00:07:07]} Bxf3 {[%clk 01:34:25]} {[%emt 00:00:31]} 9. Qxf3
{[%clk 01:20:16]} {[%emt 00:00:10]} Nf6 {[%clk 01:34:03]} {[%emt 00:00:51]} 10.
d3 {[%clk 01:17:38]} {[%emt 00:03:09]} Be7 {[%clk 01:34:21]} {[%emt 00:00:12]}
11. Qd1 {[%clk 01:07:52]} {[%emt 00:10:15]} O-O {[%clk 01:31:19]} {[%emt
00:03:32]} 12. Nd2 {[%clk 01:04:34]} {[%emt 00:03:49]} d5 {[%clk 01:23:26]}
{[%emt 00:08:23]} 13. g3 {[%clk 00:54:19]} {[%emt 00:10:45]} Qc7 {[%clk
01:14:17]} {[%emt 00:09:38]} 14. Nf3 {[%clk 00:50:04]} {[%emt 00:04:45]} b5
{[%clk 01:11:15]} {[%emt 00:03:32]} 15. Bf4 {[%clk 00:40:24]} {[%emt 00:10:10]}
e5 {[%clk 01:05:06]} {[%emt 00:06:38]} 16. Bg5 {[%clk 00:39:32]} {[%emt
00:01:22]} Rad8 {[%clk 00:54:43]} {[%emt 00:10:52]} 17. Qc2 {[%clk 00:37:51]}
{[%emt 00:02:11]} Rfe8 {[%clk 00:53:02]} {[%emt 00:02:12]} 18. Rad1 {[%clk
00:35:15]} {[%emt 00:03:06]} dxe4 {[%clk 00:43:19]} {[%emt 00:10:13]} 19. dxe4
{[%clk 00:35:33]} {[%emt 00:00:13]} Nd7 {[%clk 00:43:44]} {[%emt 00:00:05]} 20.
Be3 {[%clk 00:30:16]} {[%emt 00:05:47]} c4 {[%clk 00:37:39]} {[%emt 00:06:36]}
21. b3 {[%clk 00:30:02]} {[%emt 00:00:44]} Na5 {[%clk 00:30:42]} {[%emt
00:07:27]} 22. Rd2 {[%clk 00:26:59]} {[%emt 00:03:33]} Nf6 {[%clk 00:26:33]}
{[%emt 00:04:39]} 23. Red1 {[%clk 00:22:26]} {[%emt 00:05:03]} cxb3 {[%clk
00:21:22]} {[%emt 00:05:41]} 24. axb3 {[%clk 00:22:46]} {[%emt 00:00:09]} Rc8
{[%clk 00:21:45]} {[%emt 00:00:07]} 25. Ra1 {[%clk 00:20:18]} {[%emt 00:02:58]}
Nc6 {[%clk 00:18:14]} {[%emt 00:04:02]} 26. Rxa6 {[%clk 00:15:45]} {[%emt
00:05:03]} Nb4 {[%clk 00:18:15]} {[%emt 00:00:28]} 27. cxb4 {[%clk 00:16:09]}
{[%emt 00:00:06]} Qxc2 {[%clk 00:18:39]} {[%emt 00:00:06]} 28. Rxc2 {[%clk
00:16:37]} {[%emt 00:00:02]} Rxc2 {[%clk 00:19:01]} {[%emt 00:00:08]} 29. Bxb5
{[%clk 00:17:02]} {[%emt 00:00:05]} Rec8 {[%clk 00:08:50]} {[%emt 00:10:42]} 30.
Nxe5 {[%clk 00:16:17]} {[%emt 00:01:15]} Bxb4 {[%clk 00:07:30]} {[%emt
00:01:50]} 31. Bc4 {[%clk 00:14:58]} {[%emt 00:01:48]} Nxe4 {[%clk 00:05:09]}
{[%emt 00:02:51]} 32. Ra4 {[%clk 00:13:45]} {[%emt 00:01:43]} R2xc4 {[%clk
00:03:39]} {[%emt 00:02:00]} 33. Nxc4 {[%clk 00:13:26]} {[%emt 00:00:49]} Bc5
{[%clk 00:04:05]} {[%emt 00:00:05]} 34. Nb6 {[%clk 00:10:36]} {[%emt 00:03:20]}
Bxb6 {[%clk 00:04:32]} {[%emt 00:00:03]} 35. Bxb6 {[%clk 00:09:42]} {[%emt
00:01:22]} Nd2 {[%clk 00:04:31]} {[%emt 00:00:32]} 36. b4 {[%clk 00:08:51]}
{[%emt 00:01:21]} h6 {[%clk 00:04:31]} {[%emt 00:00:31]} 37. Be3 {[%clk
00:07:55]} {[%emt 00:01:25]} Nc4 {[%clk 00:04:27]} {[%emt 00:00:34]} 38. Bc5
{[%clk 00:07:35]} {[%emt 00:00:50]} Kh7 {[%clk 00:03:43]} {[%emt 00:01:14]} 39.
Kg2 {[%clk 00:07:02]} {[%emt 00:01:04]} Kg6 {[%clk 00:01:54]} {[%emt 00:02:19]}
40. Kf3 {[%clk 00:05:43]} {[%emt 00:01:49]} Nd2+ {[%clk 00:01:24]} {[%emt
00:00:59]} 41. Ke2 {[%clk 00:01:57]} {[%emt 00:04:15]} Ne4 {[%clk 00:26:59]}
{[%emt 00:04:57]} 42. Ra5 {[%clk 00:30:05]} {[%emt 00:02:22]} Rd8 {[%clk
00:27:20]} {[%emt 00:00:09]} 43. Ke3 {[%clk 00:28:45]} {[%emt 00:01:49]} Nxc5
{[%clk 00:19:23]} {[%emt 00:08:27]} 44. Rxc5 {[%clk 00:27:20]} {[%emt
00:01:55]} Rd1 {[%clk 00:19:47]} {[%emt 00:00:06]} 45. b5 {[%clk 00:27:45]}
{[%emt 00:00:06]} Rb1 {[%clk 00:20:01]} {[%emt 00:00:15]} 46. Kd4 {[%clk
00:27:31]} {[%emt 00:00:44]} Rb2 {[%clk 00:16:35]} {[%emt 00:03:55]} 47. Kd5
{[%clk 00:27:28]} {[%emt 00:00:33]} Rxf2 {[%clk 00:17:00]} {[%emt 00:00:06]} 48.
b6 {[%clk 00:27:55]} {[%emt 00:00:03]} Rb2 {[%clk 00:17:24]} {[%emt 00:00:06]}
49. Kc6 {[%clk 00:28:20]} {[%emt 00:00:05]} 1-0